Cogmind - Beta 17 @@@ ROGUE MODE // 2026.08.04 @ 14:12:24 Player: Cinder Result: Destroyed by as-92050 with Assembled Blade Performance ------------- Evolutions (0) 0 Regions Visited (4) 800 Robots Destroyed (18) 90 Value Destroyed (335) 335 Prototype IDs (0) 0 Alien Tech Used (0) 0 Bonus (0) 0 TOTAL SCORE: 1225 Bonus ------- None Cogmind --------- Core Integrity 0/250 Matter 269/300 Energy 250/250 System Corruption 0% Temperature Cool (0) Movement Rolling (190) Ox6 Location -9/Mines Parts ------- > --- POWER (1) -------- Ion Engine > --- PROPULSION (2) --- Compact Wheel > --- UTILITY (2) ------ Huge Storage Unit Hardened Medium Armor Plating > --- WEAPON (2) ------- Assault Rifle Assault Rifle > --- INVENTORY (25) --- Light Ion Engine Wheel Wheel Wheel Wheel Improved Heat Sink Huge Storage Unit High-capacity Matter Pod (200) Seismic Detector Recoil Stabilizer Tractor Beam Light Assault Rifle High-powered Shotgun Assault Cannon Slug Cannon Peak State ------------ > --- POWER ------------ Ion Engine > --- PROPULSION ------- Wheel Wheel > --- UTILITY ---------- Huge Storage Unit Hardened Medium Armor Plating > --- WEAPON ----------- Assault Rifle Assault Rifle > --- INVENTORY -------- Light Ion Engine Wheel Wheel Wheel Compact Wheel Improved Heat Sink Huge Storage Unit High-capacity Matter Pod Seismic Detector Recoil Stabilizer Tractor Beam Light Assault Rifle High-powered Shotgun Assault Cannon Slug Cannon [Rating: 11] Favorites ----------- Power Ion Engine Engine Ion Engine Propulsion Wheel Wheel Wheel Utility Huge Storage Unit Device Seismic Detector Storage Huge Storage Unit Protection Hardened Medium Armor Plating Weapon Assault Rifle Ballistic Gun Assault Rifle Build | -11 -10 -10 -10 -9 ------- Run | Yrd Mat Min Exi Min Slots Evolved . | . . . . . Power . | . . . . . Propulsion . | . . . . . Utility . | . . . . . Weapon . | . . . . . Parts Attached 16 | 6 7 1 . 2 Power 1 | 1 . . . . Engine 1 | 1 . . . . Core . | . . . . . Reactor . | . . . . . Propulsion 5 | 2 2 . . 1 Treads . | . . . . . Leg . | . . . . . Wheel 5 | 2 2 . . 1 Hover . | . . . . . Flight . | . . . . . Utility 5 | 1 3 . . 1 Device 1 | . 1 . . . Storage 3 | 1 2 . . . Processor . | . . . . . Hackware . | . . . . . Protection 1 | . . . . 1 Artifact . | . . . . . Weapon 5 | 2 2 1 . . Energy Gun . | . . . . . Energy Cannon . | . . . . . Ballistic Gun 5 | 2 2 1 . . Ballistic Cannon . | . . . . . Launcher . | . . . . . Special Weapon . | . . . . . Impact Weapon . | . . . . . Slashing Weapon . | . . . . . Piercing Weapon . | . . . . . Special Melee Weapon . | . . . . . Unidentified Prototypes . | . . . . . Parts Lost 5 | . 3 . . 2 Power . | . . . . . Propulsion 3 | . 1 . . 2 Utility . | . . . . . Weapon 2 | . 2 . . . Highest Loss Streak 2 | . 2 . . 1 To Critical Strikes . | . . . . . Average Backups 9 | . 4 11 15 14 Power . | . 1 1 1 1 Propulsion 2 | . 1 3 4 3 Utility 3 | . . 4 6 6 Weapon 2 | . 1 2 4 4 Tool/Special . | . . . . . Unused Backups 12 | . . . . 12 Power 1 | . . . . 1 Propulsion 4 | . . . . 4 Utility 4 | . . . . 4 Weapon 3 | . . . . 3 Tool/Special . | . . . . . Average Slot Usage (%) 93 | . 84 100 100 99 Engine 14 | . 14 14 14 14 Wheel 26 | . 24 28 28 27 Device 7 | . 1 14 14 9 Storage 14 | . 15 14 14 14 Protection 1 | . . . . 4 Ballistic Gun 28 | . 28 28 28 28 Peak Build Rating 11 | 6 7 9 9 11 Average Rating 7 | 4 6 8 9 9 On Entrance 6 | . 6 7 9 9 Avg Prop Armor Cover (%) . | . . . . . Naked Turns . | . . . . . Heaviest Build 97 | 14 94 90 90 97 Greatest Support 26 | 26 26 20 20 26 Greatest Overweight (x) 6 | . 4 4 4 6 Average Overweight (x) 3 | . 2 4 4 3 Largest Inventory Capacity 25 | 8 25 25 25 25 Average Capacity 22 | 7 20 25 25 25 Most Carried 16 | 2 8 15 16 16 Average Carried 9 | . 4 11 15 14 Final Capacity 25 | 8 25 25 25 25 Final Carried 15 | 2 7 15 15 15 Class Distribution -------------------- 100% | Mutant Dominant Class ---------------- Mutant | -10/Materials Mutant | -10/Mines Mutant | -10/Exiles Mutant | -9/Mines Resources | -11 -10 -10 -10 -9 ----------- Run | Yrd Mat Min Exi Min Matter Collected 748 | 249 241 132 6 120 Remotely . | . . . . . Salvage Created 491 | . 378 44 . 69 Parts 34 | . 23 2 . 9 Haulers Intercepted 1 | . 1 . . . Recyclers Shooed . | . . . . . Parts Field Recycled . | . . . . . Retrieved Matter . | . . . . . Parts Self-Destructed . | . . . . . Prevented . | . . . . . Parts Restored . | . . . . . Kills | -11 -10 -10 -10 -9 ------- Run | Yrd Mat Min Exi Min Combat Hostiles Destroyed 13 | . 9 . . 4 Guns 13 | . 9 . . 4 Classes Destroyed 5 | . 4 1 . . Worker 3 | . . 2 . 1 Tunneler 1 | . 1 . . . Hauler 1 | . 1 . . . Swarmer 7 | . 3 . . 4 Grunt 6 | . 6 . . . Best Kill Streak 7 | . 7 2 . 4 Combat Bots Only 7 | . 7 . . 4 Max Kills in Single Turn 1 | . 1 1 . 1 Gunslinging . | . . . . . Exploded . | . . . . . Melee . | . . . . . Uniques/NPCs Destroyed . | . . . . . Combat | -11 -10 -10 -10 -9 -------- Run | Yrd Mat Min Exi Min Hostile Shots Fired 100 | . 50 . . 50 Missed 24 | . 13 . . 11 Hits 76 | . 37 . . 39 Melee 8 | . . . . 8 Projectile 68 | . 37 . . 31 Critical Strikes 1 | . 1 . . . Damage Taken 1099 | . 507 . . 592 Core 269 | . 139 . . 130 Absorbed by Shields . | . . . . . Core Remaining (%) 100 | 100 . . . . Volleys Fired 54 | . 30 4 . 20 Largest 2 | . 2 2 . 2 Hottest 40 | . 40 40 . 40 Shots Fired 108 | . 60 8 . 40 Gun 108 | . 60 8 . 40 Cannon . | . . . . . Launcher . | . . . . . Special . | . . . . . Kinetic 108 | . 60 8 . 40 Thermal . | . . . . . Explosive . | . . . . . Electromagnetic . | . . . . . Robot Hit Streak 11 | . 11 4 . 2 Robot Miss Streak 10 | . 5 1 . 10 Penetration Max . | . . . . . Secondary Targets 3 | . . . . 3 Max Gunslinging Chain 1 | . . . . 1 Shots Hit Robots 54 | . 35 5 . 14 Core Hits 28 | . 20 2 . 6 Critical Kills . | . . . . . Critical Parts Destroyed 1 | . 1 . . . Critical Strikes 1 | . 1 . . . Destroy 1 | . 1 . . . Melee Attacks . | . . . . . Impact . | . . . . . Slashing . | . . . . . Piercing . | . . . . . Sneak Attacks . | . . . . . Combat Hostiles . | . . . . . Follow-up Attacks . | . . . . . Damage Inflicted 651 | . 422 58 . 171 Guns 651 | . 422 58 . 171 Cannons . | . . . . . Explosions . | . . . . . Melee . | . . . . . Ramming . | . . . . . Kinetic 651 | . 422 58 . 171 Thermal . | . . . . . Explosive . | . . . . . Electromagnetic . | . . . . . Impact . | . . . . . Slashing . | . . . . . Piercing . | . . . . . Highest Corruption . | . . . . . Average Corruption . | . . . . . Corruption Purged . | . . . . . Corruption Blocked . | . . . . . Overload Shots . | . . . . . Overflow Damage . | . . . . . Projectiles . | . . . . . Explosions . | . . . . . Melee . | . . . . . Knockbacks . | . . . . . Impact . | . . . . . Kinetic . | . . . . . Secondary . | . . . . . Self-Inflicted Damage . | . . . . . Shots . | . . . . . Rammed . | . . . . . Targets Rammed . | . . . . . Kicked . | . . . . . Crushed . | . . . . . Highest Temperature 20 | . 20 . . 3 Average Temperature 5 | . 5 . . 3 Received Heat Transfer 396 | . 270 . . 126 Siege Activations . | . . . . . Martial Activations . | . . . . . Shielding Activations . | . . . . . Robots Disrupted . | . . . . . Combat Hostiles . | . . . . . Robots Corrupted . | . . . . . Combat Hostiles . | . . . . . Parts Fried . | . . . . . Impact Corruptions . | . . . . . Robots Melted . | . . . . . Combat Hostiles . | . . . . . Parts Melted . | . . . . . Heat Transferred . | . . . . . Parts Sabotaged . | . . . . . Parts Stolen . | . . . . . Parts Stripped . | . . . . . Power Chain Reactions . | . . . . . Alert | -11 -10 -10 -10 -9 ------- Run | Yrd Mat Min Exi Min Maximum Alert Level . | . . . . . Low Security (%) 100 | 100 100 100 . 100 Level 1 . | . . . . . Level 2 . | . . . . . Level 3 . | . . . . . Level 4 . | . . . . . Level 5 . | . . . . . High Security . | . . . . . Max Security . | . . . . . Peak Influence 142 | . 142 10 . 80 Initial . | . . . . . Average 16 | . 21 . . 22 Influence Increases 420 | . 255 10 . 155 Destroy 0b10 Robot/C 260 | . 180 . . 80 Destroy 0b10 Robot/NC 25 | . 10 10 . 5 Destroy Leader 52 | . 42 . . 10 Successful Hack 8 | . 8 . . . Disable Machine 15 | . 15 . . . Lose Combat Pursuer 60 | . . . . 60 Influence Decreases 420 | . 255 10 . 155 Time Decay 265 | . 120 10 . 135 Lost Part 40 | . 20 . . 20 Purge Threat 115 | . 115 . . . Squads Dispatched 3 | . 2 1 . . Investigation 2 | . 1 1 . . Extermination . | . . . . . Reinforcement 1 | . 1 . . . Assault . | . . . . . Garrison . | . . . . . Intercept . | . . . . . Searches Triggered . | . . . . . Construction Impeded . | . . . . . Haulers Reinforced . | . . . . . Active Scanning Responses . | . . . . . Cargo Convoy Interrupts . | . . . . . Stealth | -11 -10 -10 -10 -9 --------- Run | Yrd Mat Min Exi Min Distress Signals 1 | . 1 . . . Communications Jammed . | . . . . . Distress Signals . | . . . . . Times Spotted 30 | . 16 . . 14 Peak Tracking Total 7 | . 7 . . 7 Tactical Retreats 2 | . . . . 2 Traps | -11 -10 -10 -10 -9 ------- Run | Yrd Mat Min Exi Min Traps Triggered . | . . . . . Indirectly . | . . . . . Trap Hack Attempts . | . . . . . Triggered . | . . . . . Disarmed . | . . . . . Reprogrammed . | . . . . . Reused . | . . . . . Traps Extracted . | . . . . . Installed . | . . . . . Triggered . | . . . . . Machines | -11 -10 -10 -10 -9 ---------- Run | Yrd Mat Min Exi Min Machines Disabled 1 | . 1 . . . Max in Single Turn 1 | . 1 . . . Machines Repaired . | . . . . . Machines Dismantled . | . . . . . Machines Sabotaged . | . . . . . Overloaded Fab Kills . | . . . . . Hacking | -11 -10 -10 -10 -9 --------- Run | Yrd Mat Min Exi Min Machines Accessed 7 | . 5 1 1 . Terminals 5 | . 5 . . . Fabricators . | . . . . . Repair Stations . | . . . . . Recycling Units . | . . . . . Scanalyzers . | . . . . . Garrison Access . | . . . . . Total Hacks 11 | . 9 1 1 . Successful 4 | . 2 1 1 . Failed 7 | . 7 . . . Catastrophic 2 | . 2 . . . Database Lockouts . | . . . . . Manual 3 | . 3 . . . Terminals 9 | . 9 . . . Fabricators . | . . . . . Repair Stations . | . . . . . Recycling Units . | . . . . . Scanalyzers . | . . . . . Garrison Access . | . . . . . Terminal Hacks 4 | . 2 1 1 . Record 1 | . . . 1 . Open Door 1 | . . 1 . . Level Access Points 1 | . 1 . . . Unreport Threat 1 | . 1 . . . Fabricator Hacks . | . . . . . Repair Station Hacks . | . . . . . Recycling Unit Hacks . | . . . . . Scanalyzer . | . . . . . Garrison Access Hacks . | . . . . . Unauthorized Hacks . | . . . . . Terminals . | . . . . . Fabricators . | . . . . . Repair Stations . | . . . . . Recycling Units . | . . . . . Scanalyzers . | . . . . . Garrison Access . | . . . . . Data Cores Recovered . | . . . . . Used . | . . . . . Hacking Detections 5 | . 5 . . . Full Trace Events 1 | . 1 . . . Feedback Events . | . . . . . Feedback Blocked . | . . . . . Robot Schematics Acquired . | . . . . . Robots Built . | . . . . . Authchips . | . . . . . Time . | . . . . . Total Robot Build Rating . | . . . . . Part Schematics Acquired . | . . . . . Parts Built . | . . . . . Authchips . | . . . . . Time . | . . . . . Total Part Build Rating . | . . . . . Part Studies Acquired . | . . . . . Parts Repaired . | . . . . . Time . | . . . . . Parts Recycled . | . . . . . Recycled Matter . | . . . . . Retrieved Matter . | . . . . . Retrieved Components . | . . . . . Parts Scanalyzed . | . . . . . Part Schematics Acquired . | . . . . . Parts Damaged . | . . . . . Bothacking | -11 -10 -10 -10 -9 ------------ Run | Yrd Mat Min Exi Min Used RIF Installer . | . . . . . Robots Hacked . | . . . . . Non-combat . | . . . . . Combat . | . . . . . Robot Hacks Applied . | . . . . . Relay Couplers Released . | . . . . . Fabnet Peak Effective % . | . . . . . Robots Rewired . | . . . . . Allies Hacked . | . . . . . Hacks Repelled . | . . . . . Allies | -11 -10 -10 -10 -9 -------- Run | Yrd Mat Min Exi Min Total Allies 2 | . . 2 . . Largest Group 2 | . . 2 2 . Highest-Rated Group 42 | . . 42 42 . Highest-Rated Ally 31 | . . 31 31 . Total Orders . | . . . . . Ally Attacks . | . . . . . Total Damage . | . . . . . Kills . | . . . . . Allies Corrupted . | . . . . . Allies Melted . | . . . . . Intel | -11 -10 -10 -10 -9 ------- Run | Yrd Mat Min Exi Min Active Infowar (turns) 1014 | . 82 408 208 316 Seismic 1014 | . 82 408 208 316 Robot Analysis Total . | . . . . . Derelict Logs Recovered 2 | . . 1 . 1 Drone Launches . | . . . . . Drone Recoveries . | . . . . . Exploration | -11 -10 -10 -10 -9 ------------- Run | Yrd Mat Min Exi Min Turns Passed 1842 | 48 713 408 208 465 Spaces Moved 1248 | 41 500 273 148 286 Core 1 | 1 . . . . Treads . | . . . . . Legs . | . . . . . Wheels 1247 | 40 500 273 148 286 Hover . | . . . . . Flight . | . . . . . Fastest Speed 50 | 50 90 140 140 135 Average Speed 129 | 90 118 140 140 138 Slowest Speed 190 | 100 140 140 140 190 Overloaded Moves . | . . . . . Propulsion Burnouts . | . . . . . Robots Hopped . | . . . . . Potential Cave-ins . | . . . . . Cave-ins Triggered . | . . . . . Exploration Rate (%) 52 | 3 87 59 53 61 Regions Visited 4 Branch Regions 3 Pre-discovered Areas 2 | . . . 1 1 Known Exits Taken . | . . . . . Unknown Exits Taken 4 | 1 1 1 1 . Scrap Searched 4 | . . 2 . 2 Spaces Dug . | . . . . . Terrain Destroyed . | . . . . . Melee . | . . . . . Projectile . | . . . . . AOE . | . . . . . Terrain Rammed . | . . . . . Walls Destroyed . | . . . . . Machines Disabled . | . . . . . Actions | -11 -10 -10 -10 -9 --------- Run | Yrd Mat Min Exi Min Total 1367 | 48 563 291 149 316 Wait 22 | . 11 6 . 5 Move 1244 | 40 499 272 147 286 Hop . | . . . . . Pick Up 20 | 2 8 8 1 1 Fast Attach 8 | 6 2 . . . Attach 8 | . 7 . . 1 Detach 5 | . 5 . . . Swap 3 | . . 1 . 2 Drop 3 | . 1 . 1 1 Fire 54 | . 30 4 . 20 Melee . | . . . . . Ram . | . . . . . Kick . | . . . . . Crush . | . . . . . Escape Stasis . | . . . . . Rewire . | . . . . . Trap . | . . . . . Miscellaneous . | . . . . . Route ------- -11/Scrapyard -10/Materials (discovered 5 exits: *Mat x3 / *Min / [*Sub]) -10/Mines (discovered 2 exits: *Mat / *Exi) -10/Exiles (discovered 2 exits: [*Min x2]) -9/Mines History --------- Turn | Location | Event 29 | -11/Scrapyard | Discovered new exit (range 15) 49 | -11/Scrapyard | Entered Materials 185 | -10/Materials | Identified exit to Materials 260 | -10/Materials | Discovered new exit (range 5) 306 | -10/Materials | Build established: Mutant 549 | -10/Materials | Derelicts attacked the area 593 | -10/Materials | Core integrity fell below 50% 648 | -10/Materials | Destroyed 7 combat bots 666 | -10/Materials | Discovered new exit (range 8) 762 | -10/Materials | Entered Mines 807 | -10/Mines | Learned Materials emergency access door positions 984 | -10/Mines | Met a Derelict shopkeep closing up shop 1033 | -10/Mines | A weapon hastily lodged in a ceiling crevice suddenly fell to the ground 1131 | -10/Mines | Discovered exit to Materials (range 12) 1162 | -10/Mines | Deemed a non-threat by the Exiles lab entrance 1162 | -10/Mines | Discovered new exit (range 5) 1170 | -10/Mines | Entered Exiles 1170 | -10/Exiles | Accompanied by 2 allies 1189 | -10/Exiles | Discovered new exit (range 15) 1200 | -10/Exiles | Led the pair of lost Derelicts to a safe place 1205 | -10/Exiles | Met 8R-AWN 1225 | -10/Exiles | Met EX-HEX 1294 | -10/Exiles | Met EX-DEC 1319 | -10/Exiles | Learned location of Zion (-7) 1367 | -10/Exiles | Discovered new exit (range 10) 1378 | -10/Exiles | Entered Mines 1436 | -9/Mines | Learned location of Storage (-9) 1707 | -9/Mines | Core integrity fell below 20% 1808 | -9/Mines | Assembled infested the area 1813 | -9/Mines | Assisted by a Guerilla fighting off Assembled 1843 | -9/Mines | Destroyed by as-92050 with Assembled Blade Last Messages --------------- 01654_ K-01 Serf destroyed. 01660_ Acquired 14 matter. 01661_ Dropped Wheel. 01694_ C-30 ARC bursts open, deploying its payload. 01694_ G-47 Trooper unfolds itself. 01694_ G-34 Mercenary unfolds itself. 01702_ Acquired 35 matter. 01703_ Wheel destroyed. 01705_ Acquired 10 matter. 01753_ K-01 Serf collects debris. 01778_ Searching scrap... 01778_ Found Wheel. 01778_ Found 30 Matter. 01781_ Acquired Wheel. 01808_ ALERT: Infestation in the mines, dispatching Demolisher response squad. 01813_ A derelict emerges from the shadows: "You need to get out of here! I've been tracking a group of Assembled to figure out where they're coming from, and they're closing on this area, come on!" 01828_ Wheel destroyed. Map ----- +----------------------------------------------------+ | ????????????????????????????????????????? | | ????????????????????????????????????????? | | ????????????????????????????????????????? | | ????????????????????????????????????????? | | ????????????????????????????????????????? | | ????????????????????????????????????????? | | ????????????????????????????????????????? | | ????????????????????????????????????????? | | ????????????????????????????????????????? | | ????????????????????????????????????????? | | ????????????????????????????????????????? | | ????????????????????????????????????????? | | ????????????????????????????????????????? | | ????????????????????????????????????????? | | ????????????????????????????????????????? | | ?????????????????????????????????????# ## | | ??????????????????????????????###????# | | ?????????????????????????????? #????#### | | ?????????????????????????????? #???????? | | ?????????????????????????????? #???????? | | ????????????????????????####?? #???????? | | ???????????????????????## ### #???????? | | ??????????????????????## ##??????? | | ?????????????????????## #??????? | | ?????????############# #??????? | | ?????????# a@ #????#### | | ?????????# ###a####### ##????# | | ?????????????# #?????# #?????# % | | ?????????????# #?????# #?????# # | | ?????????????# ?????## ## #?????# # | | ????????????? ??????## #### #?????# # | | ????????????? ???????###??# ##????# # | | ????????????? ????????????# ###### # | | ????????????? #???????????## ## # | | ????????????? #????????????# ##### | | ????????????? ##????????????## #???? | | ????????????###???????????????## ##???? | | ???????????????????????????????#####????? | | ????????????????????????????????????????? | | ????????????????????????????????????????? | | ????????????????????????????????????????? | | ????????????????????????????????????????? | | | | | | | | | | | | | | | | | +----------------------------------------------------+ Best States ------------- Heat Dissipation 25 Energy Generation 10 Energy Capacity 250 Matter Stores 300 Matter Capacity 300 Sight Range 16 Terrain Scan Density 10 Armor Coverage 225 Evasion (%) 42 Item Schematics ----------------- None Robot Schematics ------------------ None Fabricated ------------ Nothing Repaired ---------- Nothing Studied --------- None Alien Tech Used ----------------- None Achievements -------------- None Challenges ------------ None Game ------ Seed FissionMobileComputer Manual? 0 Play Time 00:12:47 Cumulative 228.1 hours Start 2026.08.04 @ 14:01:36 End 2026.08.04 @ 14:12:24 Sessions 1 Manual Loads 0 Difficulty Rogue Special Mode None Game No. 281 Rogue 281 Adventurer 0 Explorer 0 Win Type - Total 6 Types 6/0/0/0/0/0/0/0/0/0 Lore% 80 Gallery% 63 Achievement% 51 Wizard Run 0 Options --------- Layout 0 ASCII 0 Keyboard 0 Movement Numpad Keybinds 0 Fullscreen 1 Font 18/Terminus Map View 76x50 Zoom Use 0% Tactical HUD 1 Map Filters NONE Filters NONE Steam 1 RUN: 6d591204-09e1-4874-9630-0de3cb9e2438